bitfinex/quotes_ETHUSD_20250215
["timestamp","ask_amount","ask_price","bid_price","bid_amount"]
[1739639292799,8.79373108,2690.6,2690.1,3.71732]
[1739639293185,5.07700108,2690.6,2690.1,3.71732]
[1739639294600,8.79369108,2690.6,2690.1,3.71732]
[1739639294984,5.07700108,2690.6,2689.9,1.57382355]
[1739639295188,5.07700108,2690.6,2690.3,3.71696]
[1739639296162,5.07700108,2690.6,2690.3,4.49106]
[1739639296595,5.07700108,2690.6,2690.1,7.27451546]
[1739639296786,8.79373108,2690.6,2690.1,7.27451546]
[1739639296987,5.07700108,2690.6,2690.3,3.71698]
[1739639297284,5.07700108,2690.6,2690.5,3.71678]
[1739639305505,5.07700108,2691.1,2690.4,4.33135546]
[1739639305808,5.07700108,2691.1,2690.6,7.4331]
[1739639305977,5.07700108,2691.1,2690.7,3.71646]
[1739639306328,5.07700108,2691.1,2690.8,3.71633]
[1739639306472,5.07700108,2691.1,2690.4,4.33135546]
[1739639306473,5.07700108,2691.1,2690.6,3.71658]
[1739639306673,5.07700108,2691.1,2690.6,7.43315]
[1739639306873,5.07700108,2691.1,2690.6,3.71657]
[1739639307281,5.07700108,2691.1,2690.6,3.71656]
[1739639307497,5.07700108,2691.1,2690.6,7.4331]
[1739639307694,5.07700108,2691.1,2690.6,3.71654]
[1739639307887,8.79297108,2691.1,2690.6,3.71654]
[1739639308434,5.07700108,2691.1,2690.7,3.71648]
[1739639308940,3.71643,2690.8,2690.2,3.71711]
[1739639309149,0.0464592,2690.7,2690.2,3.71711]
[1739639309375,3.7630292,2690.7,2690.2,3.71711]
[1739639309503,3.71657,2690.7,2690.2,3.71711]
[1739639309710,7.43258,2690.9,2690.3,3.71703]
[1739639309925,3.71643,2690.8,2690.3,3.71703]
[1739639311440,5.07700108,2690.7,2690.3,3.71703]
[1739639313430,5.07700108,2690.7,2690.1,7.27444546]
[1739639313832,8.79355108,2690.7,2690.1,10.99169546]
[1739639314145,3.71674,2690.6,2689.9,4.54116]
[1739639314353,3.71678,2690.5,2689.9,4.54113]
[1739639315022,3.71678,2690.5,2689.9,8.25865]
[1739639315241,0.04646477,2690.4,2689.9,8.25865]
[1739639315622,3.71678,2690.5,2690.0,3.71746]
[1739639315859,3.71696,2690.4,2689.9,4.54112]
[1739639316058,3.71696,2690.4,2689.9,6.02274055]
[1739639316378,7.43397,2690.4,2689.9,3.71752]
[1739639316525,5.12346588,2690.3,2689.7,4.54143]
[1739639316726,3.71722,2690.2,2689.7,3.71783]
[1739639319459,8.79413108,2690.3,2689.7,3.71781]
[1739639319760,8.79414108,2690.3,2689.7,3.71781]
[1739639320433,3.71733,2690.1,2689.6,3.718]
[1739639320642,5.07700108,2690.1,2689.6,3.718]
[1739639321753,0.0464701,2690.0,2689.6,3.718]
[1739639322761,0.04647135,2690.0,2689.5,7.27529546]
[1739639322963,0.04647135,2690.0,2689.6,3.71799]
[1739639324364,8.79435108,2690.1,2689.6,3.71799]
[1739639324561,0.04647074,2690.0,2689.6,3.71799]
[1739639325131,8.79435108,2690.1,2689.6,3.71799]
[1739639325332,5.07700108,2690.1,2689.6,3.71799]
[1739639325560,5.12347182,2690.1,2689.6,3.71799]
[1739639326063,3.7175,2690.0,2689.6,3.71802]
[1739639326241,8.79434108,2690.1,2689.6,3.71794]
[1739639326436,5.07700108,2690.1,2689.6,3.71794]
[1739639327371,5.07700108,2690.1,2689.6,3.71793]
[1739639327668,5.07700108,2690.1,2689.7,3.71785]
[1739639327846,8.84082178,2690.1,2689.6,3.71801]
[1739639328046,8.79435108,2690.1,2689.6,3.71801]
[1739639328761,0.04647074,2690.0,2689.6,3.71801]
[1739639329270,8.79435108,2690.1,2689.6,3.71801]
[1739639329976,0.04647074,2690.0,2689.6,3.71801]
[1739639330840,8.79435108,2690.1,2689.6,3.71801]
[1739639331148,0.04647075,2690.0,2689.6,3.71801]
[1739639331960,3.76399075,2690.0,2689.5,3.71815]
[1739639332352,8.84099183,2690.0,2689.5,3.71815]
[1739639332573,3.71788,2689.8,2689.2,8.338]
[1739639332867,3.71804,2689.6,2689.1,3.71867]
[1739639333067,3.7179,2689.7,2689.1,7.43725]
[1739639333270,3.7179,2689.7,2689.1,3.71862]
[1739639333438,3.71788,2689.8,2689.2,3.71854]
[1739639333777,3.71788,2689.8,2689.3,3.71834]
[1739639335352,8.79449108,2690.0,2689.4,0.8002]
[1739639335546,8.79449108,2690.0,2689.5,3.71812]
[1739639336489,5.07700108,2690.0,2689.7,3.71776]
[1739639336681,5.07700108,2690.0,2689.8,3.71771]
[1739639337380,5.07700108,2690.3,2689.9,0.8002]
[1739639337585,5.07700108,2690.3,2690.2,3.71719]
[1739639337792,5.07700108,2690.3,2690.1,3.71719]
[1739639338289,5.07700108,2690.3,2690.0,4.15319555]
[1739639340682,5.07700108,2690.3,2690.1,3.71724]
[1739639342396,5.07700108,2690.3,2690.1,7.43448]
[1739639342713,5.07700108,2690.3,2690.1,3.71724]
[1739639350203,5.07700108,2690.3,2690.0,3.71747]
[1739639351071,5.07700108,2690.3,2689.9,7.43507]
[1739639351492,5.07700108,2690.3,2690.0,3.71745]
[1739639352173,8.79408108,2690.3,2689.8,7.27493546]
[1739639352373,13.76230719,2690.3,2689.8,3.71768]
[1739639352702,3.71722,2690.2,2689.7,6.71781]
[1739639353004,8.79422108,2690.2,2689.7,6.71781]
[1739639353605,5.07700108,2690.2,2689.8,3.71774]
[1739639353805,5.07700108,2690.2,2689.8,7.4354]
[1739639354106,5.07700108,2690.2,2689.9,3.71761]
[1739639354511,5.07700108,2690.2,2689.8,3.71766]
[1739639354671,5.07700108,2690.2,2690.0,3.71745]
[1739639357507,5.07700108,2690.2,2689.8,7.27487546]
[1739639357901,5.07700108,2690.2,2689.8,10.99252546]
[1739639358619,5.07700108,2690.2,2689.8,7.27487546]
[1739639358816,0.04646689,2690.1,2689.6,3.90451549]
[1739639359024,5.12346797,2690.1,2689.6,7.62245549]
[1739639359309,5.07700108,2690.1,2689.9,3.71757]
[1739639359916,5.07700108,2690.1,2689.8,3.71763]
[1739639360478,5.07700108,2690.1,2689.7,3.71781]
[1739639360684,5.07700108,2690.1,2689.8,3.71773]
[1739639363208,5.07700108,2690.1,2689.9,3.71759]
[1739639363513,5.07700108,2690.1,2690.0,3.71747]
[1739639363812,5.07700108,2690.1,2689.9,3.71759]
[1739639364714,5.07700108,2690.1,2689.7,3.71779]
[1739639364915,5.07700108,2690.1,2689.8,3.71773]
[1739639365316,5.07700108,2690.1,2689.9,3.71761]
[1739639367620,5.07700108,2690.1,2690.0,3.71747]
[1739639367923,5.07700108,2690.1,2690.0,4.49277]
[1739639368624,5.07700108,2690.1,2690.0,3.71747]
[1739639374507,5.07700108,2690.1,2689.9,3.71759]
[1739639374708,5.07700108,2690.1,2689.9,7.4351]
[1739639375727,5.07700108,2690.1,2690.0,3.71747]
[1739639376625,5.07700108,2690.1,2689.9,3.71751]
[1739639376818,5.07700108,2690.1,2689.9,7.43504]
[1739639377194,5.07700108,2690.1,2689.9,3.71751]
[1739639377417,5.07700108,2690.1,2690.0,3.71747]
[1739639382701,5.07700108,2690.5,2690.4,3.71691]
[1739639384523,5.07700108,2691.0,2690.4,0.8227]
[1739639384723,5.07700108,2691.0,2690.7,3.71648]
[1739639385573,5.07700108,2691.0,2690.8,3.71632]
[1739639385725,5.07700108,2691.0,2690.8,4.53899]
[1739639385931,5.07700108,2691.0,2690.9,3.71622]
[1739639386333,5.07700108,2691.4,2691.1,3.71592]
[1739639386871,5.07700108,2691.4,2690.9,3.71611]
[1739639387641,5.07700108,2691.4,2691.0,3.71605]
[1739639388261,5.07700108,2691.4,2690.9,3.71611]
[1739639388825,3.71569,2691.3,2690.8,8.09631546]
[1739639389038,5.07700108,2691.4,2690.9,3.71622]
[1739639389259,6.40075656,2691.4,2690.9,3.71622]
[1739639389955,6.40075656,2691.4,2690.9,3.71614]
[1739639391100,5.07700108,2691.4,2691.0,3.71608]
[1739639391262,5.07700108,2691.4,2691.1,3.71594]
[1739639392091,5.07700108,2691.4,2691.2,4.5385]
[1739639392295,5.07700108,2691.4,2691.3,3.71567]
[1739639393994,5.07700108,2691.4,2691.3,4.53837]
[1739639394196,5.07700108,2691.4,2691.3,5.71951255]
[1739639397581,5.07700108,2691.9,2691.3,5.71951255]
[1739639397785,5.07700108,2691.9,2691.5,3.71539]
[1739639398510,5.07700108,2691.9,2691.3,5.71951255]
[1739639399430,8.79194108,2691.9,2691.3,5.71951255]
[1739639399634,8.79194108,2691.9,2691.4,0.57195126]
[1739639400085,5.07700108,2691.9,2691.4,0.57195126]
[1739639400286,3.71506,2691.8,2691.4,0.57195126]
[1739639400493,8.79186108,2691.9,2691.4,4.28748126]
[1739639400692,8.79186108,2691.9,2691.4,7.84473672]
[1739639400906,8.79186108,2691.9,2691.5,0.86674367]
[1739639401922,3.715,2691.8,2691.5,0.86674367]
[1739639402711,5.07700108,2691.9,2691.5,0.86674367]
[1739639403009,5.07700108,2691.9,2691.6,0.8258]
[1739639403211,5.07700108,2691.9,2691.6,4.54097]
[1739639403415,5.07700108,2691.9,2691.7,4.09802683]
[1739639404338,8.79191108,2691.9,2691.7,4.09802683]
[1739639405319,5.07700108,2691.9,2691.7,4.09802683]
[1739639406061,8.79186108,2691.9,2691.7,4.09802683]
[1739639406476,5.07700108,2691.9,2691.7,4.09802683]
[1739639406829,5.07700108,2691.9,2691.7,3.55725546]
[1739639407061,8.79192108,2691.9,2691.6,0.8258]
[1739639407267,0.04643608,2691.8,2691.4,3.0]
[1739639407580,3.71505,2691.8,2691.2,0.8258]
[1739639407734,5.07700108,2691.9,2691.5,0.8258]
[1739639407933,5.07700108,2691.9,2691.5,4.54112]
[1739639408968,5.07700108,2691.9,2691.4,3.55725546]
[1739639408969,3.71511,2691.8,2691.4,3.55725546]
[1739639409127,3.71512,2691.7,2691.4,3.55725546]
[1739639409332,7.43037,2691.7,2691.3,0.8258]
[1739639410166,5.07700108,2691.9,2691.3,0.8258]
[1739639410367,3.71555,2691.4,2691.1,3.55725546]
[1739639410668,5.07700108,2691.5,2691.1,3.55725546]
[1739639411342,3.71559,2691.4,2691.1,3.55725546]
[1739639411533,3.71559,2691.4,2690.9,0.8258]
[1739639411727,3.71581,2691.2,2690.9,0.8258]
[1739639412169,3.71613,2691.0,2690.6,0.8258]
[1739639412335,5.07700108,2691.1,2690.6,0.8258]
[1739639412672,5.07700108,2691.1,2690.8,3.55725546]
[1739639413655,5.07700108,2691.1,2690.9,4.54195]
[1739639413856,5.07700108,2691.1,2690.9,0.8258]
[1739639414666,8.79297108,2691.1,2690.6,3.0]
[1739639415285,12.50903108,2691.1,2690.6,3.0]
[1739639415788,3.71616,2691.0,2690.6,3.0]
[1739639416085,8.79297108,2691.1,2690.5,4.38255546]
[1739639416086,3.71634,2690.9,2690.5,4.38255546]
[1739639416285,3.71645,2690.8,2690.5,3.55725546]
[1739639417048,8.79334108,2690.9,2690.5,3.55725546]
[1739639418260,5.07700108,2690.9,2690.5,4.73888901]
[1739639418483,5.07700108,2690.9,2690.8,3.55725546]
[1739639418853,5.07700108,2690.9,2690.8,8.09891546]
[1739639419352,5.07700108,2690.9,2690.8,4.38255546]
[1739639419572,5.07700108,2690.9,2690.8,8.09891546]
[1739639421391,5.07700108,2691.2,2690.8,4.38255546]
[1739639421569,8.79293108,2691.2,2690.8,4.38255546]
[1739639421769,3.71607,2691.1,2690.8,3.55725546]
[1739639421969,3.71609,2691.0,2690.6,3.8253]
[1739639422366,3.71609,2691.0,2690.5,3.55725546]
[1739639422572,3.7163,2690.9,2690.5,3.55725546]
[1739639423390,3.7161,2691.0,2690.5,7.27402546]
[1739639423591,3.71601,2691.1,2690.6,3.71662]
[1739639423762,5.07700108,2691.2,2690.8,3.55725546]
[1739639423956,5.07700108,2691.2,2691.0,0.8253]
[1739639424758,5.07700108,2691.2,2691.1,3.55725546]
[1739639426474,5.07700108,2691.2,2691.1,7.27320546]
[1739639426677,5.07700108,2691.6,2691.1,8.45466601]
[1739639426999,5.07700108,2691.6,2691.1,8.45461601]
[1739639428686,5.07700108,2691.6,2691.2,3.7158]
[1739639429197,3.71585,2691.2,2690.6,3.7165]
[1739639429410,3.71569,2691.3,2690.8,3.71633]
[1739639429717,3.71581,2691.2,2690.6,7.43302]
[1739639430008,3.71569,2691.3,2690.7,3.71641]
[1739639430176,7.43144,2691.3,2690.7,3.71641]
[1739639430375,5.07700108,2691.2,2690.7,3.71641]
[1739639430993,8.79285108,2691.2,2690.7,3.71641]
[1739639431189,8.79285108,2691.2,2690.5,3.55725546]
[1739639431190,3.76248238,2691.1,2690.5,3.55725546]
[1739639431500,8.79309108,2691.0,2690.5,3.55725546]
[1739639432402,5.07700108,2691.0,2690.5,7.27394546]
[1739639432904,8.79309108,2691.0,2690.5,7.27394546]
[1739639433099,3.71623,2690.9,2690.5,3.55725546]
[1739639433300,3.71623,2690.9,2690.4,4.54213]
[1739639433510,3.71623,2690.9,2690.2,16.39645546]
[1739639433511,3.71639,2690.8,2690.2,16.39645546]
[1739639433715,0.04645554,2690.8,2690.3,3.71703]
[1739639433914,8.79323108,2690.9,2690.4,3.71688]
[1739639434723,5.07700108,2690.9,2690.5,3.55725546]
[1739639434889,5.07700108,2690.9,2690.6,3.71663]
[1739639435983,5.07700108,2690.9,2690.8,3.71636]
[1739639437721,5.07700108,2690.9,2690.8,8.05771546]
[1739639439089,5.07700108,2691.5,2691.1,3.71587]
[1739639439308,5.07700108,2691.5,2691.2,3.71579]
[1739639440593,5.07700108,2691.5,2691.3,3.71567]
[1739639442922,5.07700108,2691.5,2691.4,3.71553]
[1739639444120,5.07700108,2691.5,2691.2,0.7841]
[1739639444328,5.07700108,2691.5,2691.3,7.43132]
[1739639444926,5.07700108,2691.5,2691.3,3.71566]
[1739639445130,5.07700108,2691.5,2691.3,7.43125]
[1739639446321,5.07700108,2691.5,2691.4,3.71553]
[1739639446724,5.07700108,2691.5,2691.3,3.71558]
[1739639446927,5.07700108,2691.5,2691.4,3.55725546]
[1739639447274,5.07700108,2691.5,2691.4,7.27278546]
[1739639448025,5.07700108,2691.5,2690.8,3.55725546]
[1739639448224,3.7158,2691.3,2690.8,7.27353546]
[1739639449809,8.79247108,2691.5,2690.9,3.7162]
[1739639449810,3.71564,2691.4,2690.9,3.7162]
[1739639450520,3.71564,2691.4,2690.8,7.27356546]
[1739639450697,3.71564,2691.4,2690.8,8.45027001]
[1739639451926,3.71564,2691.4,2690.9,3.71622]
[1739639452297,8.79247108,2691.5,2690.9,3.71622]
[1739639452527,3.71554,2691.4,2690.9,3.71622]
[1739639452825,8.79247108,2691.5,2690.9,3.71614]
[1739639452995,3.71555,2691.4,2690.9,3.71614]
[1739639453829,3.71568,2691.3,2690.8,8.45032001]
[1739639460681,3.7156,2691.4,2690.9,3.71619]
[1739639461482,7.43146,2691.3,2690.8,7.27361546]
[1739639461786,3.71569,2691.3,2690.8,7.27361546]
[1739639462407,3.71569,2691.3,2690.8,7.27353546]
[1739639462585,3.71569,2691.3,2690.8,10.98980546]
[1739639462767,3.71569,2691.3,2690.8,7.27352546]
[1739639462964,8.79248108,2691.5,2690.8,7.27352546]
[1739639463303,9.78304235,2691.5,2691.1,0.7911]
[1739639463499,6.06756235,2691.5,2691.1,0.7911]
[1739639463704,9.78296235,2691.5,2691.1,0.7911]
[1739639463878,3.71554,2691.4,2691.1,0.7911]
[1739639464728,5.07700108,2691.5,2691.1,0.7911]
[1739639464861,5.07700108,2691.5,2691.2,3.7157]
[1739639465065,5.07700108,2691.5,2691.2,7.43143]
[1739639465294,5.07700108,2691.5,2691.2,3.7157]
[1739639466060,5.07700108,2691.5,2691.1,0.7911]
[1739639466265,8.79241108,2691.5,2691.1,0.7911]
[1739639467008,5.07700108,2691.5,2691.1,4.50704]
[1739639470347,5.07700108,2691.5,2691.1,4.50698]
[1739639470509,5.07700108,2691.5,2691.1,4.50697]
[1739639471208,5.07700108,2691.5,2691.1,5.62928]
[1739639471629,5.07700108,2691.5,2691.2,3.71579]
[1739639474046,5.07700108,2691.5,2691.1,5.62928]
[1739639474245,5.07700108,2691.5,2691.3,3.71564]
[1739639474747,5.07700108,2691.5,2691.4,4.53823]
[1739639476812,5.07700108,2691.5,2691.4,5.363617]
[1739639477869,8.79201108,2691.8,2691.4,0.8227]
[1739639479047,5.07700108,2691.8,2691.4,0.8227]
[1739639479365,8.79200108,2691.8,2691.4,0.8227]
[1739639480466,5.07700108,2691.8,2691.4,0.8227]
[1739639481971,5.07700108,2691.8,2691.5,3.71532]
[1739639482470,5.07700108,2691.8,2691.4,0.8227]
[1739639485773,5.07700108,2691.8,2691.4,4.53822]
[1739639488382,5.07700108,2691.8,2691.5,3.71539]
[1739639492353,5.07700108,2691.8,2691.4,4.5315185]
[1739639493680,5.07700108,2691.8,2691.4,8.2469285]
[1739639495480,5.07700108,2691.8,2691.4,4.5314685]
[1739639495986,5.07700108,2691.8,2691.4,3.71541]
[1739639496209,3.76162922,2691.7,2691.2,4.47894]
[1739639496386,3.76163442,2691.7,2691.0,4.47927]
[1739639496555,0.04644442,2691.7,2691.0,3.71598]
[1739639496751,0.04644442,2691.7,2690.9,3.0]
[1739639496752,3.71554,2691.4,2690.8,3.71626]
[1739639497082,0.04644992,2691.3,2690.8,3.71626]
[1739639497291,0.04644992,2691.3,2690.8,7.43255]
[1739639497588,0.04644992,2691.3,2690.9,3.71621]
[1739639497890,3.71554,2691.4,2690.9,3.71621]
[1739639498185,0.0464482,2691.3,2690.8,3.71626]
[1739639498575,3.71554,2691.4,2690.8,3.71626]
[1739639498891,4.495799,2691.4,2690.8,3.71626]
[1739639499691,4.495799,2691.4,2690.8,7.43254]
[1739639500693,4.495799,2691.4,2690.9,3.7162]
[1739639500893,4.495799,2691.4,2690.8,7.43254]
[1739639501704,9.57280008,2691.4,2690.8,7.43254]
[1739639504315,9.57280008,2691.4,2690.8,3.71626]
[1739639504486,9.57280008,2691.4,2690.9,3.7162]
[1739639504682,0.37075575,2691.3,2690.8,3.71634]
[1739639504981,0.41720534,2691.3,2690.8,3.71634]
[1739639505400,0.37075575,2691.3,2690.8,7.43263]
[1739639505600,0.37075575,2691.3,2690.8,3.71629]
[1739639505787,0.41720534,2691.3,2690.8,7.43258]
[1739639505987,0.37075575,2691.3,2690.8,7.43258]
[1739639506909,9.57280008,2691.4,2690.8,3.71629]
[1739639508542,9.57280008,2691.4,2690.9,3.71622]
[1739639508832,5.85726008,2691.4,2691.0,3.71597]
[1739639510640,9.57280008,2691.4,2690.9,3.71622]
[1739639511229,13.28844008,2691.4,2690.8,3.71631]
[1739639511543,9.57280008,2691.4,2690.8,7.43259]
[1739639511705,9.57280008,2691.4,2690.8,9.15585393]
[1739639512556,9.57280008,2691.4,2690.8,5.43954393]
[1739639512706,13.28841008,2691.4,2690.8,5.43954393]
[1739639513146,9.57280008,2691.4,2690.8,9.15583393]
[1739639513656,9.57280008,2691.4,2690.9,3.71622]
[1739639514009,5.85726008,2691.4,2691.0,3.71606]
[1739639514243,5.07700108,2691.4,2691.0,3.71606]
[1739639515077,5.07700108,2691.4,2690.8,5.43954393]
[1739639515235,8.79254108,2691.4,2690.9,3.71621]
[1739639516446,8.79254108,2691.4,2690.8,5.43954393]
[1739639516969,3.71573,2691.3,2690.9,3.71622]
[1739639517934,3.71573,2691.3,2690.8,7.43254]
[1739639518992,3.71573,2691.3,2690.9,3.71621]
[1739639519283,5.07700108,2691.4,2690.9,3.71611]
[1739639519488,5.07700108,2691.4,2690.8,3.71626]
[1739639519662,5.07700108,2691.4,2691.0,3.71606]
[1739639523489,5.07700108,2691.4,2690.8,4.164206]
[1739639523654,8.79261108,2691.4,2690.9,3.71622]
[1739639524186,5.07700108,2691.4,2691.0,3.716]
[1739639527307,5.07700108,2691.4,2690.8,3.71625]
[1739639527512,8.79257108,2691.4,2690.9,3.7162]
[1739639528393,5.07700108,2691.4,2690.8,3.71625]
[1739639528568,5.07700108,2691.4,2690.8,4.164195]
[1739639528770,5.07700108,2691.4,2690.9,3.71612]
[1739639529204,8.79262108,2691.4,2690.9,3.71612]
[1739639531693,5.07700108,2691.4,2690.7,0.7632]
[1739639531868,5.07700108,2691.4,2691.0,7.432]
[1739639532074,5.07700108,2691.4,2691.0,3.716]
[1739639533401,5.07700108,2691.4,2691.1,3.71594]
[1739639533914,5.07700108,2691.4,2691.1,4.50492]
[1739639534085,5.07700108,2691.4,2691.2,3.71577]
[1739639534288,5.07700108,2691.4,2691.3,3.71567]
[1739639536211,5.07700108,2691.4,2691.3,4.54377]
[1739639537131,5.07700108,2691.4,2691.3,3.71567]
[1739639537288,9.16348108,2692.0,2691.3,3.71567]
[1739639537487,3.76128952,2691.9,2691.4,3.71553]
[1739639537734,9.16348108,2692.0,2691.4,3.71553]
[1739639538405,3.71485,2691.9,2691.4,3.71553]
[1739639538615,9.16348108,2692.0,2691.4,3.71553]
[1739639538987,3.71486,2691.9,2691.4,3.71553]
[1739639539228,12.87830108,2692.0,2691.4,4.63091695]
[1739639539531,9.16348108,2692.0,2691.5,3.71539]
[1739639542588,5.07700108,2692.0,2691.5,3.71539]
[1739639542788,5.07700108,2692.0,2691.8,3.7149]
[1739639543020,5.07700108,2692.0,2691.7,3.71511]
[1739639543231,5.07700108,2692.0,2691.7,7.43022]
[1739639543419,5.07700108,2692.0,2691.7,3.71511]
[1739639543936,5.07700108,2692.0,2691.8,1.72275951]
[1739639545024,5.07700108,2692.0,2691.8,5.43766951]
[1739639545756,5.07700108,2692.0,2691.8,1.72275951]
[1739639547954,5.07700108,2692.0,2691.8,5.43765951]
[1739639548156,5.07700108,2692.0,2691.9,5.08670595]
[1739639552016,5.07700108,2692.4,2692.1,3.71451]
[1739639552952,5.07700108,2692.4,2691.9,5.08661595]
[1739639553161,5.07700108,2692.4,2692.0,3.71471]
[1739639553808,5.07700108,2692.4,2691.9,5.08661595]
[1739639554162,5.07700108,2692.4,2692.0,4.57838092]
[1739639557144,0.3717,2692.3,2692.0,4.57838092]
[1739639557347,5.07700108,2692.4,2692.0,4.57838092]
[1739639559144,5.07700108,2692.4,2692.0,8.29301092]
[1739639559346,5.07700108,2692.4,2692.2,3.7144]
[1739639559566,5.07700108,2692.4,2692.2,4.52732642]
[1739639559946,5.07700108,2692.4,2692.3,3.71429]
[1739639561656,5.07700108,2692.4,2692.2,4.52732642]
[1739639561858,5.07700108,2692.4,2692.2,8.24163642]
[1739639562037,5.07700108,2692.4,2692.2,4.52727642]
[1739639562236,5.07700108,2692.4,2692.3,0.80783696]
[1739639564757,5.07700108,2692.4,2692.3,4.52212696]
[1739639564922,5.07700108,2692.4,2692.3,0.80783696]
[1739639565123,5.07700108,2692.4,2692.3,4.52212696]
[1739639568572,5.07700108,2692.4,2692.3,5.27222696]
[1739639568860,5.07700108,2692.9,2692.4,3.71406]
[1739639569040,5.07700108,2692.9,2692.4,4.6126887]
[1739639569366,5.07700108,2692.9,2692.5,3.71398]
[1739639570462,5.07700108,2692.9,2692.6,3.71381]
[1739639571267,5.07700108,2692.9,2692.5,3.7139]
[1739639571777,5.07700108,2692.9,2692.7,1.72102122]
[1739639573879,8.79058108,2692.9,2692.5,1.72102122]
[1739639579192,5.07700108,2692.9,2692.5,1.72102122]
[1739639579398,8.79055108,2692.9,2692.5,1.72102122]
[1739639579984,3.71362,2692.8,2692.5,1.72102122]
[1739639580581,5.07700108,2692.9,2692.5,1.72102122]
[1739639580790,3.71364,2692.8,2692.5,1.72102122]
[1739639581978,5.95604519,2692.9,2692.5,1.72102122]
[1739639582187,9.66958519,2692.9,2692.5,1.72102122]
[1739639582348,5.95604519,2692.9,2692.5,1.72102122]
[1739639582550,3.71361,2692.8,2692.5,1.72102122]
[1739639584785,8.79061108,2692.8,2692.5,1.72102122]
[1739639585388,6.22815683,2692.8,2692.5,1.72102122]
[1739639585574,3.71408,2692.5,2692.1,1.72102122]
[1739639585779,3.76050842,2692.5,2692.1,4.72102122]
[1739639586088,3.71425,2692.4,2692.0,0.8031]
[1739639586253,3.71444,2692.2,2691.8,0.8031]
[1739639586452,3.76103155,2692.1,2691.7,1.72102122]
[1739639586882,7.47572155,2692.1,2691.7,1.72102122]
[1739639587085,3.7146,2692.1,2691.7,1.72102122]
[1739639587258,9.6088418,2692.1,2691.7,1.72102122]
[1739639587469,3.71485,2691.9,2691.7,1.72102122]
[1739639588482,3.71485,2691.9,2691.5,10.05502122]
[1739639588961,3.71499,2691.8,2691.5,10.05502122]
[1739639589361,3.71526,2691.6,2691.5,8.334]
[1739639589575,9.53994409,2691.6,2691.5,8.334]
[1739639590660,5.82468409,2691.6,2691.5,8.334]
[1739639591200,5.07700108,2691.6,2691.5,8.334]
[1739639591597,5.07700108,2691.6,2691.5,12.0494]
[1739639591786,5.07700108,2691.6,2691.5,9.1371]
[1739639592098,5.07700108,2691.6,2691.5,8.334]
[1739639593655,5.07700108,2691.6,2691.5,9.1371]
[1739639594287,5.07700108,2691.6,2691.5,8.334]
[1739639596685,5.07700108,2691.6,2691.2,3.71568]
[1739639599774,5.07700108,2691.6,2691.2,7.43142]
[1739639599974,5.07700108,2691.6,2691.2,3.71568]
[1739639602208,0.04644254,2691.5,2691.1,0.8118]
[1739639602393,8.79228108,2691.6,2691.0,7.26944125]
[1739639602615,1.25075411,2691.5,2691.0,7.26944125]
[1739639602777,8.79228108,2691.6,2691.0,10.98544125]
[1739639603416,5.07700108,2691.6,2691.1,3.7159]
[1739639603912,8.79233108,2691.6,2691.0,7.26944125]
[1739639604088,5.07700108,2691.6,2691.0,7.26944125]
[1739639604408,3.71549,2691.5,2691.0,3.71596]
[1739639604810,3.71575,2691.3,2690.8,3.71626]
[1739639606206,3.71575,2691.3,2690.6,3.0]
[1739639606207,3.71603,2691.1,2690.6,3.71656]
[1739639606525,3.71603,2691.1,2690.5,4.52857]
[1739639607206,3.71582,2691.2,2690.6,3.71654]
[1739639607512,3.71582,2691.2,2690.7,3.71649]
[1739639607883,5.07700108,2691.3,2690.5,3.8118]
[1739639608083,5.07700108,2691.3,2690.8,4.52816]
[1739639608284,5.07700108,2691.3,2690.8,0.8118]
[1739639608485,5.07700108,2691.3,2690.8,4.52815]
[1739639608690,5.07700108,2691.3,2690.8,8.2445]
[1739639609099,5.07700108,2691.3,2690.9,3.71615]
[1739639609515,5.07700108,2691.3,2690.9,4.89592812]
[1739639609717,5.07700108,2691.3,2690.9,3.71615]
[1739639609924,3.7159,2691.2,2690.6,0.7858]
[1739639610145,3.76235324,2691.2,2690.6,0.7858]
[1739639610296,3.7161,2691.0,2690.6,0.7858]
[1739639610496,3.76255369,2691.0,2690.6,0.7858]
[1739639610692,3.76255369,2691.0,2690.5,6.71669]
[1739639611004,3.7161,2691.0,2690.4,0.7858]
[1739639611204,4.46394249,2691.0,2690.4,0.7858]
[1739639611599,9.54094357,2691.0,2690.4,0.7858]
[1739639611799,9.54094357,2691.0,2690.4,4.50264]
[1739639612335,9.54094357,2691.0,2690.5,3.7167]
[1739639614841,9.54094357,2691.0,2690.5,3.7167]
[1739639616844,10.27980397,2691.0,2690.5,3.7167]
[1739639617246,0.04645595,2690.9,2690.5,3.7167]
[1739639617450,5.07700108,2690.9,2690.5,3.7167]
[1739639617746,5.07700108,2690.9,2690.5,5.44049216]
[1739639618350,8.83971706,2690.9,2690.5,1.72379216]
[1739639618647,5.07700108,2690.9,2690.5,1.72379216]
[1739639618846,5.12345795,2690.9,2690.5,1.72379216]
[1739639619010,5.07700108,2690.9,2690.5,1.72379216]
[1739639619214,5.12345707,2690.9,2690.5,1.72379216]
[1739639619834,5.07700108,2690.9,2690.5,1.72379216]
[1739639620347,5.07700108,2690.9,2690.6,3.71663]
[1739639620546,5.07700108,2690.9,2690.5,1.72379216]
[1739639621325,5.07700108,2690.9,2690.5,5.44053216]
[1739639622332,5.07700108,2690.9,2690.6,3.71657]
[1739639623851,5.07700108,2690.9,2690.5,1.72379216]
[1739639624142,5.07700108,2690.9,2690.5,5.44056216]
[1739639624349,5.07700108,2690.9,2690.6,3.71661]
[1739639627140,5.07700108,2690.9,2690.7,1.72379216]
[1739639627454,5.07700108,2690.9,2690.8,3.71636]
[1739639627624,5.07700108,2690.9,2690.8,5.08767522]
[1739639629256,5.07700108,2690.9,2690.8,4.54366]
[1739639629443,3.71567,2691.3,2690.8,4.54366]
[1739639629960,3.71567,2691.3,2690.7,5.44028216]
[1739639630125,0.04645098,2691.2,2690.7,5.44028216]
[1739639630324,3.71567,2691.3,2690.7,5.44021216]
[1739639630624,0.04645097,2691.2,2690.7,9.15664216]
[1739639630823,0.04645097,2691.2,2690.7,5.44021216]
[1739639631221,0.04645097,2691.2,2690.7,9.15664216]
[1739639631422,3.71567,2691.3,2690.7,5.44021216]
[1739639631656,8.79253108,2691.4,2690.7,3.71642]
[1739639631826,8.79253108,2691.4,2690.7,4.826142]
[1739639632031,8.79253108,2691.4,2690.9,3.71618]